fUST/lending_fUST_20250602
["ID","MTS","AMOUNT","RATE_DAILY","PERIOD"]
[363799102,1748875841411,-430.0,0.00016827,2]
[363799104,1748875841423,-430.0,0.00016827,2]
[363799106,1748875841435,-430.0,0.00016827,2]
[363799108,1748875841445,-356.61019358,0.00016827,2]
[363799110,1748875841455,-430.0,0.00016827,2]
[363799112,1748875841465,-430.0,0.00016827,2]
[363799114,1748875841478,-330.58618859,0.00016827,2]
[363799116,1748875841488,-430.0,0.00016827,2]
[363799118,1748875841497,-371.02,0.00016827,2]
[363799121,1748875841506,-430.0,0.00016827,2]
[363799123,1748875841515,-430.0,0.00016827,2]
[363799125,1748875841524,-430.0,0.00016827,2]
[363799127,1748875841533,-430.0,0.00016827,2]
[363799129,1748875841542,-430.0,0.00016827,2]
[363799130,1748875841549,-430.0,0.00016827,2]
[363799132,1748875841558,-457.38307187,0.00016827,2]
[363799134,1748875841566,-430.0,0.00016827,2]
[363799136,1748875841575,-430.0,0.00016827,2]
[363799138,1748875841582,-430.0,0.00016827,2]
[363799140,1748875841590,-430.0,0.00016827,2]
[363799142,1748875841599,-430.51105847,0.00016827,2]
[363799144,1748875841606,-430.0,0.00016827,2]
[363799146,1748875841614,-430.0,0.00016827,2]
[363799148,1748875841623,-430.0,0.00016827,2]
[363799150,1748875841631,-430.0,0.00016827,2]
[363799152,1748875841641,-430.0,0.00016827,2]
[363799154,1748875841650,-430.0,0.00016827,2]
[363799156,1748875841660,-430.0,0.00016827,2]
[363799158,1748875841670,-430.0,0.00016827,2]
[363799160,1748875841679,-430.0,0.00016827,2]
[363799162,1748875841688,-430.0,0.00016827,2]
[363799164,1748875841698,-436.67598338,0.00016827,2]
[363799167,1748875841709,-430.0,0.00016827,2]
[363799168,1748875841718,-521.92361965,0.00016827,2]
[363799170,1748875841728,-430.0,0.00016827,2]
[363799172,1748875841738,-430.0,0.00016827,2]
[363799174,1748875841748,-430.0,0.00016827,2]
[363799176,1748875841757,-430.0,0.00016827,2]
[363799178,1748875841767,-430.0,0.00016827,2]
[363799180,1748875841776,-430.0,0.00016827,2]
[363799182,1748875841786,-430.0,0.00016827,2]
[363799184,1748875841795,-530.92862774,0.00016827,2]
[363799187,1748875841805,-394.91384267,0.00016827,2]
[363799189,1748875841816,-430.0,0.00016827,2]
[363799191,1748875841826,-430.0,0.00016827,2]
[363799193,1748875841835,-213.0017251,0.00016827,2]
[363799195,1748875841845,-430.0,0.00016827,2]
[363799196,1748875841854,-430.0,0.00016827,2]
[363799198,1748875841864,-224.01595344,0.00016827,2]
[363799200,1748875841873,-536.29435485,0.00016827,2]
[363799202,1748875841883,-430.0,0.00016827,2]
[363799204,1748875841892,-500.0,0.00016942,2]
[363799207,1748875841902,-501.05888498,0.00016942,2]
[363799209,1748875841912,-2297.87545306,0.00016964,2]
[363799211,1748875841922,-503.39334109,0.00016997,2]
[363799212,1748875841932,-503.64016206,0.00016997,2]
[363799215,1748875841942,-500.0,0.00017,2]
[363799217,1748875841952,-2930.9,0.00017,2]
[363799219,1748875841962,-2930.9,0.00017,2]
[363799221,1748875841972,-430.0,0.00017097,2]
[363799223,1748875841983,-430.0,0.00017097,2]
[363799225,1748875841993,-430.0,0.00017097,2]
[363799227,1748875842003,-804.94,0.00017097,2]
[363799229,1748875842013,-1248.91,0.00017097,2]
[363799231,1748875842022,-430.0,0.00017097,2]
[363799233,1748875842032,-430.0,0.00017097,2]
[363799235,1748875842041,-430.0,0.00017097,2]
[363799237,1748875842051,-1900.15,0.00017097,2]
[363799239,1748875842062,-430.0,0.00017097,2]
[363799241,1748875842072,-2597.69,0.00017097,2]
[363799243,1748875842081,-430.0,0.00017097,2]
[363799245,1748875842091,-430.0,0.00017098,2]
[363799247,1748875842103,-430.0,0.00017098,2]
[363799249,1748875842112,-430.0,0.00017098,2]
[363799251,1748875842123,-430.0,0.00017098,2]
[363799253,1748875842135,-430.0,0.00017098,2]
[363799255,1748875842152,-638.72,0.00017098,2]
[363799257,1748875842161,-430.0,0.00017098,2]
[363799259,1748875842171,-2908.69,0.00017098,2]
[363799261,1748875842181,-430.0,0.00017098,2]
[363799264,1748875842191,-443.31274331,0.00017098,2]
[363799266,1748875842201,-430.0,0.00017098,2]
[363799268,1748875842211,-430.0,0.00017098,2]
[363799270,1748875842222,-430.0,0.00017098,2]
[363799272,1748875842233,-348.51129988,0.00017098,2]
[363799274,1748875842242,-443.30218969,0.00017098,2]
[363799276,1748875842251,-430.0,0.00017098,2]
[363799278,1748875842261,-430.0,0.00017098,2]
[363799280,1748875842271,-430.0,0.00017098,2]
[363799282,1748875842280,-430.0,0.00017098,2]
[363799284,1748875842289,-497.83,0.00017098,2]
[363799286,1748875842298,-1048.09,0.00017098,2]
[363799288,1748875842308,-430.0,0.00017098,2]
[363799290,1748875842317,-430.0,0.00017098,2]
[363799292,1748875842327,-430.0,0.00017098,2]
[363799294,1748875842337,-430.0,0.00017098,2]
[363799296,1748875842347,-490.64716713,0.00017098,2]
[363799298,1748875842357,-430.0,0.00017098,2]
[363799300,1748875842366,-430.0,0.00017098,2]
[363799302,1748875842376,-673.12,0.00017098,2]
[363799304,1748875842386,-430.0,0.00017098,2]
[363799306,1748875842397,-430.0,0.00017098,2]
[363799310,1748875842408,-555.04528927,0.00017098,2]
[363799314,1748875842417,-430.0,0.00017098,2]
[363799316,1748875842427,-430.0,0.00017098,2]
[363799318,1748875842436,-430.0,0.00017098,2]
[363799320,1748875842446,-430.0,0.00017098,2]
[363799322,1748875842456,-322.49924613,0.00017098,2]
[363799324,1748875842465,-430.0,0.00017098,2]
[363799328,1748875842476,-430.0,0.00017098,2]
[363799331,1748875842487,-430.0,0.00017098,2]
[363799333,1748875842497,-430.0,0.00017098,2]
[363799335,1748875842506,-248.9505723,0.00017098,2]
[363799337,1748875842516,-430.0,0.00017098,2]
[363799339,1748875842526,-430.0,0.00017098,2]
[363799341,1748875842535,-564.67,0.00017098,2]
[363799343,1748875842545,-193.99701454,0.00017098,2]
[363799345,1748875842555,-851.01,0.00017098,2]
[363799347,1748875842565,-430.0,0.00017098,2]
[363799349,1748875842574,-430.0,0.00017098,2]
[363799351,1748875842584,-430.0,0.00017098,2]
[363799353,1748875842594,-430.0,0.00017098,2]
[363799355,1748875842603,-430.0,0.00017098,2]
[363799357,1748875842612,-430.0,0.00017099,2]
[363799359,1748875842621,-430.0,0.00017099,2]
[363799361,1748875842630,-430.0,0.00017099,2]
[363799363,1748875842640,-430.0,0.00017099,2]
[363799365,1748875842649,-430.0,0.00017099,2]
[363799367,1748875842659,-362.98139453,0.00017099,2]
[363799369,1748875842669,-430.0,0.00017099,2]
[363799371,1748875842678,-430.0,0.00017099,2]
[363799373,1748875842688,-430.0,0.00017099,2]
[363799375,1748875842698,-469.58,0.00017099,2]
[363799377,1748875842707,-430.0,0.00017099,2]
[363799379,1748875842717,-430.0,0.00017099,2]
[363799381,1748875842726,-430.0,0.00017099,2]
[363799383,1748875842737,-458.12,0.00017099,2]
[363799385,1748875842746,-430.0,0.00017099,2]
[363799387,1748875842755,-430.0,0.00017099,2]
[363799389,1748875842764,-430.0,0.00017099,2]
[363799391,1748875842774,-430.0,0.00017099,2]
[363799393,1748875842784,-430.0,0.00017099,2]
[363799395,1748875842794,-430.0,0.00017099,2]
[363799397,1748875842804,-482.15082175,0.00017099,2]
[363799399,1748875842814,-430.0,0.00017099,2]
[363799401,1748875842824,-430.0,0.00017099,2]
[363799403,1748875842834,-430.0,0.00017099,2]
[363799405,1748875842844,-430.0,0.00017099,2]
[363799407,1748875842854,-430.0,0.00017099,2]
[363799409,1748875842863,-376.96991516,0.00017099,2]
[363799411,1748875842873,-466.09013989,0.00017099,2]
[363799413,1748875842883,-354.35846197,0.00017099,2]
[363799415,1748875842893,-430.0,0.00017099,2]
[363799417,1748875842903,-430.0,0.00017099,2]
[363799419,1748875842912,-430.0,0.00017099,2]
[363799421,1748875842922,-520.23179445,0.00017099,2]
[363799423,1748875842932,-430.0,0.00017099,2]
[363799425,1748875842942,-430.0,0.00017099,2]
[363799427,1748875842952,-430.0,0.00017099,2]
[363799429,1748875842962,-430.0,0.00017099,2]
[363799431,1748875842972,-430.0,0.00017099,2]
[363799433,1748875842982,-430.0,0.00017099,2]
[363799435,1748875842992,-295.89843857,0.00017099,2]
[363799437,1748875843001,-430.0,0.00017099,2]
[363799439,1748875843011,-878.66,0.00017099,2]
[363799441,1748875843021,-430.0,0.00017099,2]
[363799443,1748875843031,-430.0,0.00017099,2]
[363799445,1748875843041,-430.0,0.00017099,2]
[363799447,1748875843051,-430.0,0.00017099,2]
[363799449,1748875843060,-430.0,0.00017099,2]
[363799452,1748875843070,-430.0,0.00017099,2]
[363799454,1748875843080,-430.0,0.00017099,2]
[363799456,1748875843089,-319.68,0.00017099,2]
[363799457,1748875843099,-430.0,0.00017099,2]
[363799460,1748875843108,-430.0,0.00017099,2]
[363799461,1748875843118,-430.0,0.00017099,2]
[363799464,1748875843128,-430.0,0.00017099,2]
[363799466,1748875843138,-430.0,0.00017099,2]
[363799469,1748875843147,-2068.77,0.00017099,2]
[363799471,1748875843157,-873.36,0.00017099,2]
[363799473,1748875843167,-430.0,0.00017099,2]
[363799475,1748875843178,-430.0,0.00017099,2]
[363799477,1748875843188,-430.0,0.00017099,2]
[363799479,1748875843197,-430.0,0.00017099,2]
[363799481,1748875843208,-454.3561871,0.00017099,2]
[363799483,1748875843218,-430.0,0.00017099,2]
[363799485,1748875843228,-184.96563038,0.00017099,2]
[363799487,1748875843239,-430.0,0.00017099,2]
[363799489,1748875843249,-430.0,0.00017099,2]
[363799491,1748875843260,-430.0,0.00017099,2]
[363799493,1748875843269,-430.0,0.00017099,2]
[363799495,1748875843278,-476.02,0.00017099,2]
[363799497,1748875843288,-430.0,0.00017099,2]
[363799499,1748875843297,-430.0,0.00017099,2]
[363799501,1748875843307,-430.0,0.00017099,2]
[363799503,1748875843315,-430.0,0.00017099,2]
[363799505,1748875843324,-430.0,0.00017099,2]
[363799507,1748875843333,-430.0,0.00017099,2]
[363799509,1748875843343,-430.0,0.00017099,2]
[363799511,1748875843352,-430.0,0.00017099,2]
[363799513,1748875843362,-430.0,0.00017099,2]
[363799516,1748875843372,-430.0,0.00017099,2]
[363799517,1748875843382,-430.0,0.00017099,2]
[363799520,1748875843393,-430.0,0.00017099,2]
[363799521,1748875843406,-565.92,0.00017099,2]
[363799524,1748875843416,-430.0,0.00017099,2]
[363799526,1748875843425,-733.15,0.00017099,2]
[363799528,1748875843435,-430.0,0.00017099,2]
[363799530,1748875843445,-430.0,0.00017099,2]
[363799531,1748875843455,-517.01784821,0.00017099,2]
[363799534,1748875843464,-430.0,0.00017099,2]
[363799536,1748875843475,-430.0,0.00017099,2]
[363799538,1748875843486,-1526.4,0.00017099,2]
[363799540,1748875843495,-430.0,0.00017099,2]
[363799542,1748875843504,-430.0,0.00017099,2]
[363799544,1748875843514,-654.67,0.00017099,2]
[363799546,1748875843524,-430.0,0.00017099,2]
[363799548,1748875843533,-560.31986821,0.00017099,2]
[363799549,1748875843542,-430.0,0.00017099,2]
[363799551,1748875843551,-430.0,0.00017099,2]
[363799553,1748875843561,-535.40428877,0.00017099,2]
[363799555,1748875843570,-3041.88,0.00017099,2]
[363799557,1748875843580,-430.0,0.00017099,2]
[363799559,1748875843590,-501.42,0.00017099,2]
[363799561,1748875843599,-1091.3,0.000171,2]
[363799563,1748875843609,-430.0,0.000171,2]
[363799565,1748875843618,-1175.57,0.000171,2]
[363799567,1748875843627,-430.0,0.000171,2]
[363799569,1748875843637,-1163.93,0.000171,2]
[363799571,1748875843646,-430.0,0.000171,2]
[363799573,1748875843655,-430.0,0.00017101,2]
[363799575,1748875843665,-386.72071813,0.00017101,2]
[363799577,1748875843674,-430.0,0.00017101,2]
[363799579,1748875843684,-214.23736188,0.00017101,2]
[363799580,1748875843693,-430.0,0.00017101,2]
[363799581,1748875843703,-430.0,0.00017101,2]
[363799582,1748875843712,-430.0,0.00017101,2]
[363799583,1748875843722,-430.0,0.00017101,2]
[363799584,1748875843732,-430.0,0.00017101,2]
[363799585,1748875843742,-159.89233528,0.00017101,2]
[363799586,1748875843751,-450.0,0.00017101,2]
[363799587,1748875843761,-433.28171749,0.00017101,2]
[363799588,1748875843771,-430.0,0.00017101,2]
[363799589,1748875843780,-430.0,0.00017101,2]
[363799590,1748875843790,-401.1758707,0.00017101,2]
[363799591,1748875843799,-430.0,0.00017101,2]
[363799592,1748875843809,-430.0,0.00017101,2]
[363799593,1748875843818,-430.0,0.00017101,2]
[363799594,1748875843829,-430.0,0.00017101,2]
[363799595,1748875843839,-430.0,0.00017101,2]
[363799596,1748875843849,-430.0,0.00017101,2]
[363799598,1748875843859,-430.0,0.00017101,2]
[363799600,1748875843869,-430.0,0.00017101,2]
[363799602,1748875843879,-430.0,0.00017101,2]
[363799604,1748875843889,-430.0,0.00017101,2]
[363799606,1748875843899,-359.5509278,0.00017101,2]
[363799608,1748875843909,-314.47709477,0.00017101,2]
[363799610,1748875843918,-430.0,0.00017101,2]
[363799612,1748875843927,-430.0,0.00017101,2]
[363799614,1748875843938,-434.65,0.00017101,2]
[363799616,1748875843947,-285.65591586,0.00017101,2]
[363799618,1748875843957,-356.04273473,0.00017101,2]
[363799620,1748875843967,-430.0,0.00017101,2]
[363799622,1748875843976,-430.0,0.00017101,2]
[363799624,1748875843986,-430.0,0.00017101,2]
[363799626,1748875843995,-430.0,0.00017101,2]
[363799628,1748875844004,-280.41979953,0.00017101,2]
[363799630,1748875844014,-430.0,0.00017101,2]
[363799632,1748875844023,-430.0,0.00017101,2]
[363799634,1748875844033,-219.03950663,0.00017101,2]
[363799636,1748875844043,-430.0,0.00017101,2]
[363799638,1748875844052,-430.0,0.00017101,2]
[363799640,1748875844062,-430.0,0.00017101,2]
[363799642,1748875844071,-430.0,0.00017101,2]
[363799644,1748875844081,-430.0,0.00017101,2]
[363799646,1748875844091,-430.0,0.00017101,2]
[363799648,1748875844100,-430.0,0.00017101,2]
[363799650,1748875844109,-430.0,0.00017101,2]
[363799652,1748875844119,-430.0,0.00017101,2]
[363799654,1748875844128,-430.0,0.00017101,2]
[363799656,1748875844138,-430.0,0.00017101,2]
[363799658,1748875844147,-430.0,0.00017101,2]
[363799660,1748875844156,-421.07231158,0.00017101,2]
[363799661,1748875844166,-430.0,0.00017101,2]
[363799663,1748875844176,-430.0,0.00017101,2]
[363799665,1748875844185,-430.0,0.00017101,2]
[363799667,1748875844196,-430.0,0.00017101,2]
[363799669,1748875844206,-430.0,0.00017101,2]
[363799671,1748875844216,-429.04521588,0.00017101,2]
[363799673,1748875844226,-430.0,0.00017101,2]
[363799675,1748875844237,-430.0,0.00017101,2]
[363799677,1748875844247,-205.31940556,0.00017101,2]
[363799679,1748875844257,-430.0,0.00017101,2]
[363799682,1748875844269,-430.0,0.00017101,2]
[363799683,1748875844279,-247.80654649,0.00017101,2]
[363799685,1748875844290,-500.0,0.00017121,2]
[363799687,1748875844300,-1000.0,0.00017121,2]
[363799689,1748875844310,-1000.0,0.00017121,2]
[363799692,1748875844320,-941.13984157,0.00017121,2]
[363799693,1748875844330,-437.77584222,0.00017121,2]
[363799695,1748875844339,-1079.6233432,0.00017121,2]
[363799697,1748875844349,-500.0,0.00017121,2]
[363799699,1748875844359,-1000.0,0.00017121,2]
[363799701,1748875844368,-500.0,0.00017121,2]
[363799703,1748875844378,-500.0,0.00017138,2]
[363799705,1748875844388,-500.0,0.00017138,2]
[363799707,1748875844400,-500.0,0.00017138,2]
[363799709,1748875844410,-445.31375362,0.00017158,2]
[363799711,1748875844420,-300.46231514,0.00017158,2]
[363799713,1748875844430,-500.0,0.00017158,2]
[363799715,1748875844439,-500.0,0.00017158,2]
[363799717,1748875844451,-500.0,0.00017158,2]
[363799719,1748875844461,-500.0,0.00017158,2]
[363799721,1748875844472,-500.0,0.00017158,2]
[363799723,1748875844483,-162.52965001,0.00017158,2]
[363799725,1748875844494,-407.67132712,0.00017211,2]
[363799727,1748875844503,-506.85366716,0.00017211,2]
[363799729,1748875844513,-500.95347134,0.00017283,2]
[363799731,1748875844523,-623.67696814,0.00017283,2]
[363799734,1748875844532,-416.68985103,0.00017343,2]
[363799736,1748875844542,-430.0,0.00017371,2]
[363799738,1748875844552,-430.0,0.00017371,2]
[363799740,1748875844562,-430.0,0.00017371,2]
[363799742,1748875844572,-804.94,0.00017371,2]
[363799744,1748875844582,-1248.91,0.00017371,2]
[363799746,1748875844591,-430.0,0.00017371,2]
[363799748,1748875844601,-430.0,0.00017371,2]
[363799750,1748875844610,-430.0,0.00017371,2]
[363799752,1748875844621,-1900.15,0.00017371,2]
[363799753,1748875844630,-438.33354368,0.00017371,2]
[363799755,1748875844640,-2597.69,0.00017371,2]
[363799757,1748875844650,-430.0,0.00017371,2]
[363799759,1748875844659,-430.0,0.00017372,2]
[363799775,1748875844798,-430.0,0.00017372,2]
[363799777,1748875844809,-638.72,0.00017372,2]
[363799779,1748875844819,-2908.69,0.00017372,2]
[363799781,1748875844829,-430.0,0.00017372,2]
[363799783,1748875844839,-430.0,0.00017372,2]
[363799785,1748875844848,-430.0,0.00017372,2]
[363799787,1748875844858,-430.0,0.00017372,2]
[363799789,1748875844868,-430.0,0.00017372,2]
[363799791,1748875844877,-430.0,0.00017372,2]
[363799793,1748875844887,-497.83,0.00017372,2]
[363799795,1748875844896,-1048.09,0.00017372,2]
[363799797,1748875844906,-430.0,0.00017372,2]
[363799799,1748875844916,-430.0,0.00017372,2]
[363799801,1748875844926,-430.0,0.00017372,2]
[363799803,1748875844936,-673.12,0.00017372,2]
[363799805,1748875844945,-430.0,0.00017372,2]
[363799807,1748875844955,-430.0,0.00017372,2]
[363799809,1748875844965,-408.61590313,0.00017372,2]
[363799811,1748875844975,-430.0,0.00017372,2]
[363799813,1748875844986,-430.0,0.00017372,2]
[363799815,1748875844995,-430.0,0.00017372,2]
[363799817,1748875845005,-430.0,0.00017372,2]
[363799819,1748875845015,-430.0,0.00017372,2]
[363799821,1748875845026,-430.0,0.00017372,2]
[363799823,1748875845037,-430.0,0.00017372,2]
[363799825,1748875845047,-564.67,0.00017372,2]
[363799827,1748875845056,-851.01,0.00017372,2]
[363799829,1748875845066,-430.0,0.00017372,2]
[363799831,1748875845076,-430.0,0.00017372,2]
[363799833,1748875845085,-430.0,0.00017372,2]
[363799835,1748875845095,-430.0,0.00017372,2]
[363799837,1748875845105,-400.0,0.00017372,2]
[363799839,1748875845115,-430.0,0.00017373,2]
[363799841,1748875845124,-430.0,0.00017373,2]
[363799843,1748875845134,-430.0,0.00017373,2]
[363799845,1748875845144,-430.0,0.00017373,2]
[363799847,1748875845153,-430.0,0.00017373,2]
[363799849,1748875845162,-430.0,0.00017373,2]
[363799851,1748875845172,-430.0,0.00017373,2]
[363799853,1748875845181,-430.0,0.00017373,2]
[363799855,1748875845191,-469.58,0.00017373,2]
[363799857,1748875845200,-290.20184727,0.00017373,2]
[363799859,1748875845210,-430.0,0.00017373,2]
[363799861,1748875845219,-458.12,0.00017373,2]
[363799863,1748875845228,-430.0,0.00017373,2]
[363799865,1748875845239,-430.0,0.00017373,2]
[363799867,1748875845249,-430.0,0.00017373,2]
[363799869,1748875845259,-430.0,0.00017373,2]
[363799871,1748875845268,-430.0,0.00017373,2]
[363799873,1748875845279,-430.0,0.00017373,2]
[363799875,1748875845289,-173.58219566,0.00017373,2]
[363799877,1748875845298,-162.72453924,0.00017373,2]
[363799879,1748875845308,-430.0,0.00017373,2]
[363799881,1748875845318,-430.0,0.00017373,2]
[363799883,1748875845327,-430.0,0.00017373,2]
[363799885,1748875845337,-430.0,0.00017373,2]
[363799887,1748875845346,-430.0,0.00017373,2]
[363799889,1748875845356,-430.0,0.00017373,2]
[363799891,1748875845365,-430.0,0.00017373,2]
[363799893,1748875845375,-290.377292,0.00017373,2]
[363799895,1748875845385,-466.41081921,0.00017373,2]
[363799897,1748875845396,-430.0,0.00017373,2]
[363799899,1748875845409,-430.0,0.00017373,2]
[363799901,1748875845419,-878.66,0.00017373,2]
[363799903,1748875845428,-430.0,0.00017373,2]
[363799905,1748875845439,-430.0,0.00017373,2]
[363799908,1748875845448,-430.0,0.00017373,2]
[363799910,1748875845457,-430.0,0.00017373,2]
[363799913,1748875845466,-430.0,0.00017373,2]
[363799916,1748875845477,-430.0,0.00017373,2]
[363799919,1748875845489,-430.0,0.00017373,2]
[363799922,1748875845499,-430.0,0.00017373,2]
[363799925,1748875845509,-430.0,0.00017373,2]
[363799928,1748875845519,-430.0,0.00017373,2]
[363799931,1748875845529,-2068.77,0.00017373,2]
[363799933,1748875845539,-873.36,0.00017373,2]
[363799935,1748875845548,-430.0,0.00017373,2]
[363799937,1748875845558,-430.0,0.00017373,2]
[363799939,1748875845568,-440.74592492,0.00017373,2]
[363799941,1748875845579,-430.0,0.00017373,2]
[363799943,1748875845589,-450.0,0.00017373,2]
[363799945,1748875845598,-430.0,0.00017373,2]
[363799947,1748875845608,-430.0,0.00017373,2]
[363799949,1748875845618,-476.02,0.00017373,2]
[363799951,1748875845628,-430.0,0.00017373,2]
[363799954,1748875845638,-530.0,0.00017373,2]
[363799956,1748875845648,-430.0,0.00017373,2]
[363799958,1748875845658,-430.0,0.00017373,2]
[363799960,1748875845668,-430.0,0.00017373,2]
[363799962,1748875845678,-430.0,0.00017373,2]
[363799964,1748875845688,-430.0,0.00017373,2]
[363799966,1748875845697,-430.0,0.00017373,2]
[363799968,1748875845707,-430.0,0.00017373,2]
[363799970,1748875845717,-340.0,0.00017373,2]
[363799972,1748875845727,-430.0,0.00017373,2]
[363799974,1748875845738,-430.0,0.00017373,2]
[363799976,1748875845747,-565.92,0.00017373,2]
[363799978,1748875845758,-430.0,0.00017373,2]
[363799980,1748875845768,-733.15,0.00017373,2]
[363799982,1748875845778,-430.0,0.00017373,2]
[363799984,1748875845788,-430.0,0.00017373,2]
[363799986,1748875845798,-430.0,0.00017373,2]
[363799988,1748875845807,-1526.4,0.00017373,2]
[363799990,1748875845817,-430.0,0.00017373,2]
[363799992,1748875845827,-430.0,0.00017373,2]
[363799994,1748875845837,-654.67,0.00017373,2]
[363799996,1748875845846,-430.0,0.00017373,2]
[363799998,1748875845857,-430.0,0.00017373,2]
[363800000,1748875845867,-430.0,0.00017373,2]
[363800002,1748875845877,-3041.88,0.00017373,2]
[363800004,1748875845887,-430.0,0.00017373,2]
[363800006,1748875845897,-501.42,0.00017373,2]
[363800008,1748875845907,-1091.3,0.00017374,2]
[363800010,1748875845916,-430.0,0.00017374,2]
[363800012,1748875845925,-1175.57,0.00017374,2]
[363800014,1748875845935,-430.0,0.00017374,2]
[363800016,1748875845945,-1163.93,0.00017374,2]
[363800018,1748875845954,-430.0,0.00017374,2]
[363800020,1748875845964,-430.0,0.00017375,2]
[363800022,1748875845974,-430.0,0.00017375,2]
[363800024,1748875845984,-430.0,0.00017375,2]
[363800026,1748875845994,-214.36615569,0.00017375,2]
[363800028,1748875846004,-430.0,0.00017375,2]
[363800030,1748875846014,-430.0,0.00017375,2]
[363800032,1748875846024,-430.0,0.00017375,2]
[363800034,1748875846033,-430.0,0.00017375,2]
[363800036,1748875846042,-430.0,0.00017375,2]
[363800038,1748875846052,-430.0,0.00017375,2]
[363800040,1748875846062,-430.0,0.00017375,2]
[363800042,1748875846072,-430.0,0.00017375,2]
[363800044,1748875846082,-434.65,0.00017375,2]
[363800046,1748875846091,-430.0,0.00017375,2]
[363800048,1748875846101,-430.0,0.00017375,2]
[363800050,1748875846111,-556.89014251,0.00017375,2]
[363800052,1748875846121,-448.77149452,0.00017375,2]
[363800054,1748875846130,-430.0,0.00017375,2]
[363800056,1748875846140,-430.0,0.00017375,2]
[363800058,1748875846149,-430.0,0.00017375,2]
[363800060,1748875846159,-430.0,0.00017375,2]
[363800062,1748875846168,-430.0,0.00017375,2]
[363800064,1748875846178,-430.0,0.00017375,2]
[363800066,1748875846188,-430.0,0.00017375,2]
[363800068,1748875846198,-430.0,0.00017375,2]
[363800070,1748875846208,-430.0,0.00017375,2]
[363800071,1748875846218,-430.0,0.00017375,2]
[363800072,1748875846227,-430.0,0.00017375,2]
[363800073,1748875846238,-430.0,0.00017375,2]
[363800074,1748875846247,-430.0,0.00017375,2]
[363800075,1748875846258,-430.0,0.00017375,2]
[363800077,1748875846267,-430.0,0.00017375,2]
[363800079,1748875846277,-197.0788592,0.00017375,2]
[363800081,1748875846286,-430.0,0.00017375,2]
[363800083,1748875846296,-165.57346673,0.00017412,2]
[363800085,1748875846305,-165.72,0.00017412,2]
[363800087,1748875846315,-165.72,0.00017412,2]
[363800089,1748875846325,-500.0,0.0001749,2]
[363800091,1748875846334,-430.0,0.00017645,2]
[363800093,1748875846344,-430.0,0.00017645,2]
[363800095,1748875846354,-430.0,0.00017645,2]
[363800097,1748875846363,-804.94,0.00017645,2]
[363800099,1748875846373,-1248.91,0.00017645,2]
[363800101,1748875846383,-430.0,0.00017645,2]
[363800103,1748875846393,-430.0,0.00017645,2]
[363800105,1748875846405,-430.0,0.00017645,2]
[363800107,1748875846414,-1900.15,0.00017645,2]
[363800109,1748875846424,-2597.69,0.00017645,2]
[363800111,1748875846435,-430.0,0.00017645,2]